[Event "Titled Tuesday Blitz May 9 Late 2023"]
[White "Van Baar, Esper"]
[Black "Avalos Parra, Joao"]
[WhiteFideId "1049321"]
[BlackFideId "3402541"]
[WhiteElo "2184"]
[BlackElo "2173"]
[Result "0-1"]
[Round "05"]
[TimeControl "180+2"]
[Date "2023.05.09"]
[WhiteClock "0:00:03"]
[BlackClock "0:00:31"]

1. e4 {[%clk 0:03:00]}  e5 {[%clk 0:02:59]} 2. Nf3 {[%clk 0:03:00]}  Nc6 {[%clk 0:03:00]} 3. Bc4 {[%clk 0:02:57]}  Bc5 {[%clk 0:03:00]} 4. c3 {[%clk 0:02:56]}  Nf6 {[%clk 0:02:59]} 5. d3 {[%clk 0:02:56]}  O-O {[%clk 0:02:59]} 6. O-O {[%clk 0:02:56]}  d6 {[%clk 0:02:58]} 7. h3 {[%clk 0:02:56]}  a5 {[%clk 0:02:58]} 8. a4 {[%clk 0:02:51]}  Ba7 {[%clk 0:02:53]} 9. Re1 {[%clk 0:02:37]}  Ne7 {[%clk 0:02:53]} 10. Be3 {[%clk 0:02:20]}  Bxe3 {[%clk 0:02:46]} 11. Rxe3 {[%clk 0:02:21]}  Ng6 {[%clk 0:02:46]} 12. d4 {[%clk 0:02:20]}  c6 {[%clk 0:02:43]} 13. Na3 {[%clk 0:02:12]}  exd4 {[%clk 0:01:56]} 14. cxd4 {[%clk 0:02:05]}  d5 {[%clk 0:01:51]} 15. exd5 {[%clk 0:01:59]}  Nxd5 {[%clk 0:01:45]} 16. Bxd5 {[%clk 0:01:18]}  Qxd5 {[%clk 0:01:46]} 17. Qb3 {[%clk 0:01:18]}  Qh5 {[%clk 0:01:23]} 18. Rae1 {[%clk 0:00:49]}  Be6 {[%clk 0:00:37]} 19. Qxb7 {[%clk 0:00:38]}  Bd5 {[%clk 0:00:37]} 20. Ne5 {[%clk 0:00:31]}  Nxe5 {[%clk 0:00:30]} 21. Rxe5 {[%clk 0:00:31]}  Qg6 {[%clk 0:00:31]} 22. g3 {[%clk 0:00:24]}  h6 {[%clk 0:00:31]} 23. Nc2 {[%clk 0:00:22]}  Rab8 {[%clk 0:00:31]} 24. Qd7 {[%clk 0:00:03]}  Qxc2 {[%clk 0:00:31]} 0-1


[Site "https://www.chess.com"]

[Event "Titled Tuesday Blitz May 9 Late 2023"]
[White "Qiao, Cindy"]
[Black "Horokoskii"]
[WhiteFideId "2620243"]
[WhiteElo "1777"]
[BlackElo "2107"]
[Result "1-0"]
[Round "05"]
[TimeControl "180+2"]
[Date "2023.05.09"]
[WhiteClock "0:00:12"]
[BlackClock "0:00:00"]

1. d4 {[%clk 0:01:19]}  Nf6 {[%clk 0:02:58]} 2. Bf4 {[%clk 0:01:19]}  g6 {[%clk 0:02:57]} 3. e3 {[%clk 0:01:18]}  Bg7 {[%clk 0:02:57]} 4. Nf3 {[%clk 0:01:18]}  O-O {[%clk 0:02:58]} 5. Bd3 {[%clk 0:01:16]}  d6 {[%clk 0:02:58]} 6. c4 {[%clk 0:01:12]}  c5 {[%clk 0:02:47]} 7. Nc3 {[%clk 0:01:11]}  Nbd7 {[%clk 0:02:37]} 8. O-O {[%clk 0:01:11]}  a6 {[%clk 0:02:35]} 9. Re1 {[%clk 0:01:10]}  Nh5 {[%clk 0:02:34]} 10. Bg5 {[%clk 0:01:09]}  h6 {[%clk 0:02:28]} 11. Bh4 {[%clk 0:01:09]}  g5 {[%clk 0:02:26]} 12. Bg3 {[%clk 0:01:10]}  Nxg3 {[%clk 0:02:26]} 13. hxg3 {[%clk 0:01:10]}  Qb6 {[%clk 0:02:04]} 14. Qc2 {[%clk 0:01:09]}  cxd4 {[%clk 0:01:57]} 15. exd4 {[%clk 0:01:10]}  g4 {[%clk 0:01:33]} 16. Nh4 {[%clk 0:01:09]}  Qxd4 {[%clk 0:01:23]} 17. Nf5 {[%clk 0:01:08]}  Qf6 {[%clk 0:01:17]} 18. Nxe7+ {[%clk 0:01:09]}  Kh8 {[%clk 0:01:16]} 19. Ned5 {[%clk 0:01:05]}  Qd4 {[%clk 0:01:12]} 20. Rad1 {[%clk 0:01:04]}  Ne5 {[%clk 0:01:08]} 21. b3 {[%clk 0:01:01]}  Nxd3 {[%clk 0:01:00]} 22. Rxd3 {[%clk 0:01:02]}  Qa7 {[%clk 0:00:58]} 23. Rde3 {[%clk 0:01:00]}  Be6 {[%clk 0:00:57]} 24. Nf4 {[%clk 0:00:59]}  Bd4 {[%clk 0:00:36]} 25. R3e2 {[%clk 0:00:57]}  Bd7 {[%clk 0:00:33]} 26. Ncd5 {[%clk 0:00:57]}  Bc6 {[%clk 0:00:29]} 27. Qf5 {[%clk 0:00:56]}  Rae8 {[%clk 0:00:23]} 28. Rxe8 {[%clk 0:00:52]}  Bxf2+ {[%clk 0:00:21]} 29. Kh2 {[%clk 0:00:49]}  Bxe8 {[%clk 0:00:20]} 30. Rxe8 {[%clk 0:00:43]}  Rxe8 {[%clk 0:00:15]} 31. Qxf7 {[%clk 0:00:44]}  Bxg3+ {[%clk 0:00:15]} 32. Kxg3 {[%clk 0:00:42]}  Re3+ {[%clk 0:00:15]} 33. Kxg4 {[%clk 0:00:34]}  h5+ {[%clk 0:00:11]} 34. Qxh5+ {[%clk 0:00:28]}  Kg8 {[%clk 0:00:10]} 35. Nf6+ {[%clk 0:00:27]}  Kf8 {[%clk 0:00:08]} 36. Ng6+ {[%clk 0:00:20]}  Kg7 {[%clk 0:00:08]} 37. Qf5 {[%clk 0:00:13]}  Qd4+ {[%clk 0:00:08]} 38. Nf4 {[%clk 0:00:11]}  Qxf6 {[%clk 0:00:06]} 39. Qd7+ {[%clk 0:00:11]}  Re7 {[%clk 0:00:03]} 40. Nh5+ {[%clk 0:00:11]}  Kg6 {[%clk 0:00:04]} 41. Nxf6 {[%clk 0:00:11]}  Kxf6 {[%clk 0:00:02]} 42. Qxd6+ {[%clk 0:00:11]}  Re6 {[%clk 0:00:02]} 43. Qf4+ {[%clk 0:00:11]}  Ke7 {[%clk 0:00:02]} 44. Qc7+ {[%clk 0:00:11]}  Kf6 {[%clk 0:00:02]} 45. Qxb7 {[%clk 0:00:12]}  a5 {[%clk 0:00:01]} 46. Qd5 {[%clk 0:00:12]}  Kg6 {[%clk 0:00:00]} 47. Qxe6+ {[%clk 0:00:12]} 1-0


[Site "https://www.chess.com"]

[Event "Titled Tuesday Blitz May 9 Late 2023"]
[White "ArtemDyachuk"]
[Black "Celestino, Rafael Teixeira"]
[BlackFideId "2108925"]
[WhiteElo "2509"]
[BlackElo "2322"]
[Result "1-0"]
[Round "05"]
[TimeControl "180+2"]
[Date "2023.05.09"]
[WhiteClock "0:01:35"]
[BlackClock "0:00:27"]

1. Nf3 {[%clk 0:03:00]}  Nf6 {[%clk 0:02:59]} 2. c4 {[%clk 0:03:00]}  Nc6 {[%clk 0:02:57]} 3. d4 {[%clk 0:02:58]}  d5 {[%clk 0:02:56]} 4. cxd5 {[%clk 0:02:58]}  Nxd5 {[%clk 0:02:57]} 5. e4 {[%clk 0:02:54]}  Nb6 {[%clk 0:02:56]} 6. d5 {[%clk 0:02:54]}  Nb8 {[%clk 0:02:49]} 7. a4 {[%clk 0:02:52]}  g6 {[%clk 0:02:49]} 8. Qd4 {[%clk 0:02:50]}  f6 {[%clk 0:02:47]} 9. Nc3 {[%clk 0:02:50]}  Bg7 {[%clk 0:02:47]} 10. a5 {[%clk 0:02:46]}  N6d7 {[%clk 0:02:47]} 11. Bc4 {[%clk 0:02:45]}  O-O {[%clk 0:02:48]} 12. h4 {[%clk 0:02:34]}  f5 {[%clk 0:02:43]} 13. e5 {[%clk 0:02:26]}  h5 {[%clk 0:02:36]} 14. Ne2 {[%clk 0:02:17]}  Kh7 {[%clk 0:02:34]} 15. Ng5+ {[%clk 0:02:16]}  Kh8 {[%clk 0:02:33]} 16. Ne6 {[%clk 0:02:09]}  Bxe5 {[%clk 0:02:07]} 17. Qe3 {[%clk 0:02:08]}  f4 {[%clk 0:02:02]} 18. N2xf4 {[%clk 0:02:00]}  Qe8 {[%clk 0:01:56]} 19. Bd2 {[%clk 0:01:51]}  Rg8 {[%clk 0:01:40]} 20. Nxh5 {[%clk 0:01:45]}  Rf8 {[%clk 0:01:10]} 21. d6 {[%clk 0:01:40]}  gxh5 {[%clk 0:00:28]} 22. Qh6+ {[%clk 0:01:38]}  Kg8 {[%clk 0:00:29]} 23. Nxf8+ {[%clk 0:01:36]}  e6 {[%clk 0:00:27]} 24. Bxe6+ {[%clk 0:01:35]}  Qf7 {[%clk 0:00:27]} 25. Qh7+ {[%clk 0:01:34]}  Kxf8 {[%clk 0:00:27]} 26. Qxf7# {[%clk 0:01:35]} 1-0


[Site "https://www.chess.com"]

[Event "Titled Tuesday Blitz May 9 Late 2023"]
[White "TheKnightOfBosnia"]
[Black "Smiechu"]
[WhiteElo "2474"]
[BlackElo "2314"]
[Result "1/2-1/2"]
[Round "05"]
[TimeControl "180+2"]
[Date "2023.05.09"]
[WhiteClock "0:00:16"]
[BlackClock "0:00:42"]

1. e4 {[%clk 0:03:00]}  c5 {[%clk 0:02:59]} 2. Nf3 {[%clk 0:03:01]}  g6 {[%clk 0:02:59]} 3. d4 {[%clk 0:03:01]}  cxd4 {[%clk 0:03:00]} 4. Nxd4 {[%clk 0:03:01]}  Nc6 {[%clk 0:03:01]} 5. c4 {[%clk 0:03:01]}  Bg7 {[%clk 0:03:01]} 6. Be3 {[%clk 0:03:02]}  Nf6 {[%clk 0:03:01]} 7. f3 {[%clk 0:03:02]}  O-O {[%clk 0:02:54]} 8. Nc3 {[%clk 0:03:02]}  d6 {[%clk 0:02:50]} 9. Be2 {[%clk 0:03:02]}  Nxd4 {[%clk 0:02:50]} 10. Bxd4 {[%clk 0:03:01]}  Be6 {[%clk 0:02:51]} 11. b3 {[%clk 0:02:57]}  Qa5 {[%clk 0:02:50]} 12. O-O {[%clk 0:02:55]}  Rfb8 {[%clk 0:02:48]} 13. Rc1 {[%clk 0:02:51]}  a6 {[%clk 0:02:48]} 14. a4 {[%clk 0:02:51]}  Rc8 {[%clk 0:02:48]} 15. Kh1 {[%clk 0:02:49]}  Qb4 {[%clk 0:02:47]} 16. Re1 {[%clk 0:02:30]}  Nd7 {[%clk 0:02:46]} 17. Bxg7 {[%clk 0:02:21]}  Kxg7 {[%clk 0:02:47]} 18. Qd4+ {[%clk 0:02:21]}  Kg8 {[%clk 0:02:46]} 19. Rb1 {[%clk 0:02:21]}  Nc5 {[%clk 0:02:46]} 20. Bd1 {[%clk 0:02:12]}  b5 {[%clk 0:02:26]} 21. axb5 {[%clk 0:01:55]}  axb5 {[%clk 0:02:25]} 22. Rg1 {[%clk 0:01:33]}  bxc4 {[%clk 0:02:23]} 23. bxc4 {[%clk 0:01:23]}  Qxc4 {[%clk 0:02:22]} 24. Qxc4 {[%clk 0:01:23]}  Bxc4 {[%clk 0:02:23]} 25. Be2 {[%clk 0:01:23]}  Bxe2 {[%clk 0:02:19]} 26. Nxe2 {[%clk 0:01:23]}  Ra2 {[%clk 0:02:17]} 27. Nf4 {[%clk 0:01:22]}  Rca8 {[%clk 0:02:07]} 28. Rgc1 {[%clk 0:01:20]}  Rd2 {[%clk 0:02:05]} 29. Rd1 {[%clk 0:01:18]}  Raa2 {[%clk 0:02:03]} 30. Rxd2 {[%clk 0:01:17]}  Rxd2 {[%clk 0:02:04]} 31. h3 {[%clk 0:01:17]}  Nd3 {[%clk 0:02:02]} 32. Nd5 {[%clk 0:01:09]}  e6 {[%clk 0:01:59]} 33. Nf6+ {[%clk 0:01:09]}  Kg7 {[%clk 0:01:58]} 34. Ne8+ {[%clk 0:01:08]}  Kf8 {[%clk 0:01:57]} 35. Rb8 {[%clk 0:01:01]}  Ke7 {[%clk 0:01:53]} 36. Nc7 {[%clk 0:01:00]}  Nf4 {[%clk 0:01:50]} 37. Rb7 {[%clk 0:00:48]}  Kf6 {[%clk 0:01:49]} 38. Ne8+ {[%clk 0:00:48]}  Kg5 {[%clk 0:01:47]} 39. Rxf7 {[%clk 0:00:47]}  e5 {[%clk 0:01:36]} 40. Rxh7 {[%clk 0:00:45]}  Nxg2 {[%clk 0:01:35]} 41. Nxd6 {[%clk 0:00:43]}  Ne1 {[%clk 0:01:30]} 42. h4+ {[%clk 0:00:27]}  Kf4 {[%clk 0:01:27]} 43. Rf7+ {[%clk 0:00:20]}  Kg3 {[%clk 0:01:27]} 44. Nc4 {[%clk 0:00:19]}  Rh2+ {[%clk 0:01:25]} 45. Kg1 {[%clk 0:00:19]}  Rg2+ {[%clk 0:01:22]} 46. Kf1 {[%clk 0:00:19]}  Nxf3 {[%clk 0:01:20]} 47. Rxf3+ {[%clk 0:00:16]}  Kxf3 {[%clk 0:01:18]} 48. Nxe5+ {[%clk 0:00:17]}  Kg3 {[%clk 0:01:18]} 49. Nxg6 {[%clk 0:00:18]}  Ra2 {[%clk 0:01:03]} 50. e5 {[%clk 0:00:16]}  Kf3 {[%clk 0:01:00]} 51. Ke1 {[%clk 0:00:17]}  Ke4 {[%clk 0:00:58]} 52. e6 {[%clk 0:00:17]}  Kf5 {[%clk 0:00:57]} 53. e7 {[%clk 0:00:16]}  Ra8 {[%clk 0:00:55]} 54. h5 {[%clk 0:00:16]}  Kg5 {[%clk 0:00:52]} 55. Ke2 {[%clk 0:00:16]}  Kxh5 {[%clk 0:00:52]} 56. Nf4+ {[%clk 0:00:16]}  Kg5 {[%clk 0:00:52]} 57. Ne6+ {[%clk 0:00:16]}  Kf6 {[%clk 0:00:51]} 58. Nc7 {[%clk 0:00:17]}  Ra2+ {[%clk 0:00:51]} 59. Kd3 {[%clk 0:00:18]}  Kxe7 {[%clk 0:00:51]} 60. Nd5+ {[%clk 0:00:18]}  Kd6 {[%clk 0:00:51]} 61. Nc3 {[%clk 0:00:19]}  Ra3 {[%clk 0:00:51]} 62. Kc4 {[%clk 0:00:20]}  Ra1 {[%clk 0:00:50]} 63. Kd4 {[%clk 0:00:20]}  Rh1 {[%clk 0:00:49]} 64. Ne4+ {[%clk 0:00:20]}  Kc6 {[%clk 0:00:49]} 65. Nc3 {[%clk 0:00:16]}  Rh4+ {[%clk 0:00:49]} 66. Kd3 {[%clk 0:00:16]}  Kc5 {[%clk 0:00:47]} 67. Ne4+ {[%clk 0:00:17]}  Kd5 {[%clk 0:00:47]} 68. Nc3+ {[%clk 0:00:16]}  Ke5 {[%clk 0:00:48]} 69. Ke3 {[%clk 0:00:15]}  Rh3+ {[%clk 0:00:48]} 70. Kd2 {[%clk 0:00:15]}  Kd4 {[%clk 0:00:47]} 71. Ne2+ {[%clk 0:00:16]}  Kc4 {[%clk 0:00:48]} 72. Nf4 {[%clk 0:00:15]}  Rf3 {[%clk 0:00:46]} 73. Ne2 {[%clk 0:00:15]}  Rd3+ {[%clk 0:00:46]} 74. Kc2 {[%clk 0:00:15]}  Ra3 {[%clk 0:00:45]} 75. Kd2 {[%clk 0:00:15]}  Kd5 {[%clk 0:00:43]} 76. Nc3+ {[%clk 0:00:15]}  Kd4 {[%clk 0:00:44]} 77. Nb5+ {[%clk 0:00:15]}  Kc4 {[%clk 0:00:42]} 78. Nxa3+ {[%clk 0:00:16]} 1/2-1/2


[Site "https://www.chess.com"]

[Event "Titled Tuesday Blitz May 9 Late 2023"]
[White "Zampronha, Wladimir Camilo"]
[Black "Herman, Daniel"]
[WhiteFideId "2103087"]
[BlackFideId "30935008"]
[WhiteElo "2176"]
[BlackElo "1897"]
[Result "0-1"]
[Round "05"]
[TimeControl "180+2"]
[Date "2023.05.09"]
[WhiteClock "0:00:00"]
[BlackClock "0:00:15"]

1. e4 {[%clk 0:02:54]}  Nf6 {[%clk 0:02:59]} 2. e5 {[%clk 0:02:52]}  Nd5 {[%clk 0:02:59]} 3. d4 {[%clk 0:02:51]}  d6 {[%clk 0:03:00]} 4. c4 {[%clk 0:02:51]}  Nb6 {[%clk 0:03:00]} 5. exd6 {[%clk 0:02:52]}  exd6 {[%clk 0:03:00]} 6. Nc3 {[%clk 0:02:52]}  Be7 {[%clk 0:03:00]} 7. h3 {[%clk 0:02:42]}  O-O {[%clk 0:03:00]} 8. Nf3 {[%clk 0:02:42]}  Nc6 {[%clk 0:02:59]} 9. Be2 {[%clk 0:02:43]}  Bf5 {[%clk 0:02:59]} 10. O-O {[%clk 0:02:42]}  Bf6 {[%clk 0:02:54]} 11. Bf4 {[%clk 0:02:38]}  Re8 {[%clk 0:02:45]} 12. Rc1 {[%clk 0:02:37]}  d5 {[%clk 0:02:39]} 13. c5 {[%clk 0:02:36]}  Nc8 {[%clk 0:02:33]} 14. Bb5 {[%clk 0:02:32]}  N8e7 {[%clk 0:02:29]} 15. Re1 {[%clk 0:02:25]}  Rf8 {[%clk 0:02:23]} 16. Ne5 {[%clk 0:02:22]}  Bxe5 {[%clk 0:02:15]} 17. dxe5 {[%clk 0:02:20]}  d4 {[%clk 0:02:10]} 18. Ne4 {[%clk 0:02:13]}  Nd5 {[%clk 0:02:11]} 19. Bg3 {[%clk 0:02:13]}  Nde7 {[%clk 0:01:51]} 20. Nd2 {[%clk 0:01:25]}  Nb4 {[%clk 0:01:44]} 21. Qb3 {[%clk 0:01:22]}  Nbd5 {[%clk 0:01:42]} 22. Bc4 {[%clk 0:01:11]}  Be6 {[%clk 0:01:33]} 23. Nf3 {[%clk 0:01:10]}  Nc6 {[%clk 0:01:30]} 24. Qd1 {[%clk 0:01:04]}  Nde7 {[%clk 0:01:24]} 25. Re4 {[%clk 0:00:54]}  Bxc4 {[%clk 0:01:13]} 26. Rxc4 {[%clk 0:00:54]}  Nf5 {[%clk 0:01:09]} 27. Bh2 {[%clk 0:00:48]}  Qd5 {[%clk 0:01:07]} 28. Qd3 {[%clk 0:00:45]}  Rad8 {[%clk 0:01:02]} 29. g4 {[%clk 0:00:39]}  Nfe7 {[%clk 0:00:58]} 30. Nxd4 {[%clk 0:00:37]}  Ng6 {[%clk 0:00:44]} 31. f4 {[%clk 0:00:33]}  Nh4 {[%clk 0:00:38]} 32. Kf2 {[%clk 0:00:24]}  f5 {[%clk 0:00:34]} 33. gxf5 {[%clk 0:00:04]}  Nxf5 {[%clk 0:00:34]} 34. e6 {[%clk 0:00:01]}  Ncxd4 {[%clk 0:00:19]} 35. e7 {[%clk 0:00:01]}  Nxe7 {[%clk 0:00:17]} 36. Rcxd4 {[%clk 0:00:00]}  Qxc5 {[%clk 0:00:15]} 0-1


[Site "https://www.chess.com"]

[Event "Titled Tuesday Blitz May 9 Late 2023"]
[White "Martic, Ivan"]
[Black "Nastase, Robert-Paul"]
[WhiteFideId "929301"]
[BlackFideId "1221175"]
[WhiteElo "2360"]
[BlackElo "2175"]
[Result "1/2-1/2"]
[Round "05"]
[TimeControl "180+2"]
[Date "2023.05.09"]
[WhiteClock "0:01:14"]
[BlackClock "0:00:10"]

1. Nf3 {[%clk 0:03:00]}  d5 {[%clk 0:02:55]} 2. g3 {[%clk 0:02:59]}  Nf6 {[%clk 0:02:53]} 3. Bg2 {[%clk 0:03:00]}  e6 {[%clk 0:02:53]} 4. O-O {[%clk 0:03:00]}  Be7 {[%clk 0:02:53]} 5. d3 {[%clk 0:02:58]}  O-O {[%clk 0:02:51]} 6. Nbd2 {[%clk 0:02:59]}  b6 {[%clk 0:02:50]} 7. e4 {[%clk 0:02:59]}  dxe4 {[%clk 0:02:42]} 8. Ng5 {[%clk 0:02:55]}  Bb7 {[%clk 0:02:43]} 9. Ndxe4 {[%clk 0:02:54]}  Nxe4 {[%clk 0:02:05]} 10. Nxe4 {[%clk 0:02:55]}  Qc8 {[%clk 0:02:05]} 11. a4 {[%clk 0:02:43]}  Nd7 {[%clk 0:01:55]} 12. a5 {[%clk 0:02:37]}  Nf6 {[%clk 0:01:53]} 13. a6 {[%clk 0:02:34]}  Bd5 {[%clk 0:01:24]} 14. Qe2 {[%clk 0:02:19]}  c5 {[%clk 0:01:19]} 15. Bg5 {[%clk 0:02:13]}  Rd8 {[%clk 0:00:58]} 16. Bxf6 {[%clk 0:02:12]}  Bxf6 {[%clk 0:00:57]} 17. Nxf6+ {[%clk 0:02:10]}  gxf6 {[%clk 0:00:57]} 18. Qg4+ {[%clk 0:02:10]}  Kh8 {[%clk 0:00:55]} 19. Qh4 {[%clk 0:02:10]}  Kg7 {[%clk 0:00:53]} 20. Rfe1 {[%clk 0:02:01]}  Bxg2 {[%clk 0:00:50]} 21. Kxg2 {[%clk 0:02:02]}  Qc6+ {[%clk 0:00:45]} 22. Kg1 {[%clk 0:02:00]}  Rd4 {[%clk 0:00:42]} 23. Re4 {[%clk 0:01:55]}  Rad8 {[%clk 0:00:38]} 24. Rae1 {[%clk 0:01:50]}  h6 {[%clk 0:00:23]} 25. R1e3 {[%clk 0:01:38]}  f5 {[%clk 0:00:23]} 26. Rf4 {[%clk 0:01:32]}  Rxf4 {[%clk 0:00:21]} 27. gxf4 {[%clk 0:01:30]}  Kh7 {[%clk 0:00:20]} 28. Rg3 {[%clk 0:01:27]}  Rg8 {[%clk 0:00:09]} 29. Rxg8 {[%clk 0:01:22]}  Kxg8 {[%clk 0:00:10]} 30. Qxh6 {[%clk 0:01:22]}  Qf3 {[%clk 0:00:11]} 31. Qg5+ {[%clk 0:01:17]}  Kf8 {[%clk 0:00:11]} 32. Qd8+ {[%clk 0:01:15]}  Kg7 {[%clk 0:00:11]} 33. Qc7 {[%clk 0:01:14]}  Qd1+ {[%clk 0:00:10]} 34. Kg2 {[%clk 0:01:12]}  Qg4+ {[%clk 0:00:10]} 35. Kf1 {[%clk 0:01:13]}  Qd1+ {[%clk 0:00:10]} 36. Kg2 {[%clk 0:01:13]}  Qg4+ {[%clk 0:00:10]} 37. Kf1 {[%clk 0:01:14]}  Qd1+ {[%clk 0:00:10]} 38. Kg2 {[%clk 0:01:14]} 1/2-1/2


[Site "https://www.chess.com"]

[Event "Titled Tuesday Blitz May 9 Late 2023"]
[White "MunichMouse"]
[Black "Perez Rodriguez, Jennifer"]
[BlackFideId "3507831"]
[WhiteElo "2280"]
[BlackElo "2116"]
[Result "0-1"]
[Round "05"]
[TimeControl "180+2"]
[Date "2023.05.09"]
[WhiteClock "0:00:00"]
[BlackClock "0:00:27"]

1. d4 {[%clk 0:03:00]}  d5 {[%clk 0:02:52]} 2. c4 {[%clk 0:03:00]}  c6 {[%clk 0:02:52]} 3. Nf3 {[%clk 0:03:01]}  Nf6 {[%clk 0:02:52]} 4. e3 {[%clk 0:03:01]}  e6 {[%clk 0:02:52]} 5. Nc3 {[%clk 0:03:00]}  Nbd7 {[%clk 0:02:52]} 6. b3 {[%clk 0:02:59]}  Bb4 {[%clk 0:02:49]} 7. Bd2 {[%clk 0:02:59]}  O-O {[%clk 0:02:48]} 8. Bd3 {[%clk 0:02:59]}  Re8 {[%clk 0:02:41]} 9. a3 {[%clk 0:02:56]}  Bxc3 {[%clk 0:02:39]} 10. Bxc3 {[%clk 0:02:56]}  Ne4 {[%clk 0:02:40]} 11. Bb2 {[%clk 0:02:56]}  f5 {[%clk 0:02:36]} 12. Nd2 {[%clk 0:02:55]}  Qg5 {[%clk 0:02:34]} 13. O-O {[%clk 0:02:50]}  Ndf6 {[%clk 0:02:33]} 14. Qe2 {[%clk 0:02:37]}  Bd7 {[%clk 0:02:20]} 15. f3 {[%clk 0:02:35]}  Nxd2 {[%clk 0:02:18]} 16. Qxd2 {[%clk 0:02:34]}  Rf8 {[%clk 0:02:17]} 17. a4 {[%clk 0:02:24]}  Be8 {[%clk 0:02:10]} 18. Ba3 {[%clk 0:02:21]}  Rf7 {[%clk 0:02:09]} 19. Bd6 {[%clk 0:02:21]}  Rd7 {[%clk 0:02:06]} 20. Be5 {[%clk 0:02:12]}  Bg6 {[%clk 0:02:05]} 21. Rfe1 {[%clk 0:02:00]}  Rad8 {[%clk 0:01:50]} 22. Qb4 {[%clk 0:01:54]}  Nh5 {[%clk 0:01:42]} 23. f4 {[%clk 0:01:48]}  Qh4 {[%clk 0:01:35]} 24. Qc5 {[%clk 0:01:20]}  a6 {[%clk 0:01:33]} 25. b4 {[%clk 0:01:14]}  Nf6 {[%clk 0:01:33]} 26. Bxf6 {[%clk 0:01:13]}  Qxf6 {[%clk 0:01:31]} 27. b5 {[%clk 0:01:14]}  axb5 {[%clk 0:01:31]} 28. cxb5 {[%clk 0:01:07]}  Be8 {[%clk 0:01:05]} 29. bxc6 {[%clk 0:00:20]}  Rc7 {[%clk 0:01:05]} 30. Bb5 {[%clk 0:00:14]}  Bxc6 {[%clk 0:01:04]} 31. Rec1 {[%clk 0:00:12]}  Rdc8 {[%clk 0:01:04]} 32. Qb6 {[%clk 0:00:12]}  Qe7 {[%clk 0:00:53]} 33. Be2 {[%clk 0:00:06]}  Ra8 {[%clk 0:00:40]} 34. a5 {[%clk 0:00:05]}  Rcc8 {[%clk 0:00:40]} 35. a6 {[%clk 0:00:04]}  Qd7 {[%clk 0:00:32]} 36. axb7 {[%clk 0:00:01]}  Bxb7 {[%clk 0:00:31]} 37. Rxc8+ {[%clk 0:00:01]}  Qxc8 {[%clk 0:00:27]} 38. Rxa8 {[%clk 0:00:02]}  Bxa8 {[%clk 0:00:27]} 39. h3 {[%clk 0:00:02]}  Bc6 {[%clk 0:00:26]} 40. Kh2 {[%clk 0:00:02]}  Bd7 {[%clk 0:00:26]} 41. Qd6 {[%clk 0:00:02]}  Kf7 {[%clk 0:00:27]} 42. Ba6 {[%clk 0:00:00]}  Qc6 {[%clk 0:00:27]} 0-1


[Site "https://www.chess.com"]

[Event "Titled Tuesday Blitz May 9 Late 2023"]
[White "Svicevic, Rastko"]
[Black "Golubev, Mikhail"]
[WhiteFideId "916315"]
[BlackFideId "14100983"]
[WhiteElo "2115"]
[BlackElo "2374"]
[Result "0-1"]
[Round "05"]
[TimeControl "180+2"]
[Date "2023.05.09"]
[WhiteClock "0:01:44"]
[BlackClock "0:01:32"]

1. d4 {[%clk 0:02:55]}  Nf6 {[%clk 0:02:58]} 2. Bg5 {[%clk 0:02:55]}  Ne4 {[%clk 0:02:56]} 3. Bf4 {[%clk 0:02:55]}  c5 {[%clk 0:02:55]} 4. f3 {[%clk 0:02:54]}  Nf6 {[%clk 0:02:52]} 5. dxc5 {[%clk 0:02:54]}  Qa5+ {[%clk 0:02:42]} 6. c3 {[%clk 0:02:54]}  Qxc5 {[%clk 0:02:35]} 7. e4 {[%clk 0:02:54]}  d5 {[%clk 0:02:04]} 8. e5 {[%clk 0:02:49]}  Nfd7 {[%clk 0:02:03]} 9. Qd2 {[%clk 0:02:14]}  Nc6 {[%clk 0:02:03]} 10. Be3 {[%clk 0:02:14]}  Qa5 {[%clk 0:02:02]} 11. f4 {[%clk 0:02:14]}  e6 {[%clk 0:01:45]} 12. Nf3 {[%clk 0:02:02]}  b5 {[%clk 0:01:40]} 13. b4 {[%clk 0:01:48]}  Nxb4 {[%clk 0:01:34]} 14. cxb4 {[%clk 0:01:49]}  Bxb4 {[%clk 0:01:32]} 15. Nc3 {[%clk 0:01:44]}  Bxc3 {[%clk 0:01:32]} 0-1


[Site "https://www.chess.com"]

[Event "Titled Tuesday Blitz May 9 Late 2023"]
[White "Harish, Neeraj"]
[Black "ElenGajger"]
[WhiteFideId "30958130"]
[WhiteElo "1879"]
[BlackElo "2402"]
[Result "0-1"]
[Round "05"]
[TimeControl "180+2"]
[Date "2023.05.09"]
[WhiteClock "0:00:04"]
[BlackClock "0:00:48"]

1. e4 {[%clk 0:03:00]}  c5 {[%clk 0:02:59]} 2. Nf3 {[%clk 0:03:00]}  g6 {[%clk 0:02:59]} 3. d4 {[%clk 0:03:00]}  cxd4 {[%clk 0:03:00]} 4. Nxd4 {[%clk 0:03:01]}  Bg7 {[%clk 0:03:00]} 5. c4 {[%clk 0:03:00]}  Nc6 {[%clk 0:03:00]} 6. Be3 {[%clk 0:03:00]}  Nf6 {[%clk 0:03:01]} 7. Nc3 {[%clk 0:03:01]}  O-O {[%clk 0:03:01]} 8. Be2 {[%clk 0:02:51]}  d6 {[%clk 0:03:01]} 9. O-O {[%clk 0:02:49]}  Bd7 {[%clk 0:02:59]} 10. Nc2 {[%clk 0:02:49]}  a5 {[%clk 0:02:47]} 11. f4 {[%clk 0:02:42]}  Nb4 {[%clk 0:02:43]} 12. Rc1 {[%clk 0:02:26]}  Bc6 {[%clk 0:02:36]} 13. Bf3 {[%clk 0:02:21]}  Nxc2 {[%clk 0:02:25]} 14. Qxc2 {[%clk 0:02:15]}  Nd7 {[%clk 0:02:26]} 15. Rcd1 {[%clk 0:01:19]}  a4 {[%clk 0:02:24]} 16. Nd5 {[%clk 0:01:17]}  Bxd5 {[%clk 0:02:22]} 17. cxd5 {[%clk 0:01:10]}  Qa5 {[%clk 0:02:16]} 18. Rc1 {[%clk 0:01:02]}  Qb4 {[%clk 0:02:00]} 19. b3 {[%clk 0:00:33]}  axb3 {[%clk 0:01:56]} 20. axb3 {[%clk 0:00:33]}  Nc5 {[%clk 0:01:51]} 21. Qc4 {[%clk 0:00:20]}  Qxb3 {[%clk 0:01:40]} 22. Qxb3 {[%clk 0:00:20]}  Nxb3 {[%clk 0:01:39]} 23. Rc7 {[%clk 0:00:20]}  Nc5 {[%clk 0:01:25]} 24. Rxe7 {[%clk 0:00:18]}  Bf6 {[%clk 0:01:16]} 25. Rc7 {[%clk 0:00:16]}  Bd8 {[%clk 0:01:16]} 26. Rxc5 {[%clk 0:00:16]}  dxc5 {[%clk 0:01:16]} 27. Bxc5 {[%clk 0:00:17]}  Re8 {[%clk 0:01:15]} 28. e5 {[%clk 0:00:17]}  Rc8 {[%clk 0:01:13]} 29. Bb4 {[%clk 0:00:16]}  Rc4 {[%clk 0:01:13]} 30. Bd2 {[%clk 0:00:15]}  Bb6+ {[%clk 0:01:13]} 31. Kh1 {[%clk 0:00:14]}  Rc2 {[%clk 0:01:12]} 32. Rd1 {[%clk 0:00:12]}  Rec8 {[%clk 0:01:12]} 33. h3 {[%clk 0:00:11]}  Bf2 {[%clk 0:00:56]} 34. Kh2 {[%clk 0:00:10]}  h5 {[%clk 0:00:53]} 35. d6 {[%clk 0:00:10]}  h4 {[%clk 0:00:52]} 36. Bxb7 {[%clk 0:00:07]}  Rb8 {[%clk 0:00:51]} 37. Bf3 {[%clk 0:00:06]}  Bg3+ {[%clk 0:00:51]} 38. Kh1 {[%clk 0:00:06]}  Kf8 {[%clk 0:00:50]} 39. Be1 {[%clk 0:00:06]}  Bxe1 {[%clk 0:00:48]} 40. Rxe1 {[%clk 0:00:07]}  Rd2 {[%clk 0:00:48]} 41. Rd1 {[%clk 0:00:07]}  Rxd1+ {[%clk 0:00:47]} 42. Bxd1 {[%clk 0:00:07]}  Rb1 {[%clk 0:00:48]} 43. Kh2 {[%clk 0:00:04]}  Rxd1 {[%clk 0:00:49]} 44. g3 {[%clk 0:00:04]}  Rd2+ {[%clk 0:00:49]} 45. Kg1 {[%clk 0:00:04]}  hxg3 {[%clk 0:00:50]} 46. h4 {[%clk 0:00:03]}  Ke8 {[%clk 0:00:49]} 47. Kh1 {[%clk 0:00:03]}  Kd7 {[%clk 0:00:49]} 48. h5 {[%clk 0:00:04]}  gxh5 {[%clk 0:00:49]} 49. f5 {[%clk 0:00:04]}  h4 {[%clk 0:00:49]} 50. Kg1 {[%clk 0:00:04]}  h3 {[%clk 0:00:49]} 51. Kh1 {[%clk 0:00:04]}  Rd1# {[%clk 0:00:48]} 0-1


[Site "https://www.chess.com"]